bitfinex/quotes_BTCUSD_20250614
["timestamp","ask_amount","ask_price","bid_price","bid_amount"]
[1749910225360,1.02800668,105140.0,105130.0,0.42571917]
[1749910225786,0.82827273,105140.0,105130.0,0.42571917]
[1749910225989,0.84729416,105140.0,105130.0,0.42571853]
[1749910226568,1.05653887,105140.0,105130.0,0.41620714]
[1749910226788,0.86631631,105140.0,105130.0,0.42571853]
[1749910227622,0.70889771,105140.0,105130.0,0.42571853]
[1749910228421,0.69938659,105140.0,105130.0,0.42571853]
[1749910229507,0.68036462,105140.0,105130.0,0.42571853]
[1749910229714,0.09101889,105140.0,105130.0,0.42571853]
[1749910229942,0.82448746,105140.0,105130.0,0.42571853]
[1749910230130,0.84729416,105140.0,105130.0,0.42571853]
[1749910230662,0.83778322,105140.0,105130.0,0.42571853]
[1749910230860,0.84729416,105140.0,105130.0,0.42571853]
[1749910230987,0.83778322,105140.0,105130.0,0.42571853]
[1749910231192,0.84729407,105140.0,105130.0,0.42571853]
[1749910232028,0.85680501,105140.0,105130.0,0.42571853]
[1749910233389,0.84729407,105140.0,105130.0,0.42571853]
[1749910233566,0.85680501,105140.0,105130.0,0.42571853]
[1749910234247,0.10052974,105140.0,105130.0,0.42571853]
[1749910234426,0.07772304,105140.0,105130.0,0.42571853]
[1749910235202,0.03804304,105140.0,105130.0,0.42571853]
[1749910235387,0.07772304,105140.0,105130.0,0.42571853]
[1749910235579,0.0682121,105140.0,105130.0,0.42571853]
[1749910235779,0.07772304,105140.0,105130.0,0.42571853]
[1749910240931,0.2679456,105140.0,105130.0,0.40669566]
[1749910241140,0.07772304,105140.0,105130.0,0.41620705]
[1749910241578,0.08723407,105140.0,105130.0,0.41620705]
[1749910242189,0.27745726,105140.0,105130.0,0.41620705]
[1749910243035,1.03373253,105140.0,105130.0,0.41620705]
[1749910243237,1.05656802,105140.0,105130.0,0.41620705]
[1749910243926,1.04705726,105140.0,105130.0,0.25237566]
[1749910244146,1.02803547,105140.0,105130.0,0.38128444]
[1749910247083,0.2717602,105140.0,105130.0,0.38128444]
[1749910247364,1.00519998,105140.0,105130.0,0.38128444]
[1749910247572,1.02803547,105140.0,105130.0,0.38128444]
[1749910249065,1.02803547,105140.0,105130.0,0.39079611]
[1749910249246,1.02803547,105140.0,105130.0,0.40729611]
[1749910249485,1.02803547,105140.0,105130.0,0.41680769]
[1749910251469,1.02803547,105140.0,105130.0,0.39778444]
[1749910252179,1.02803547,105140.0,105130.0,0.38128444]
[1749910252412,1.02803547,105140.0,105130.0,0.39079611]
[1749910253097,1.02803547,105140.0,105130.0,0.40669611]
[1749910258631,1.02803547,105140.0,105130.0,0.0336]
[1749910258845,1.02803547,105140.0,105130.0,0.0177]
[1749910258846,1.01852444,105140.0,105130.0,0.0177]
[1749910259268,1.03552444,105140.0,105130.0,0.002]
[1749910260707,1.01852444,105140.0,105130.0,0.0183]
[1749910263585,1.01852444,105140.0,105130.0,0.02781203]
[1749910264286,1.01852444,105140.0,105130.0,0.22756462]
[1749910264690,0.26224917,105140.0,105130.0,0.26298823]
[1749910264889,0.23941368,105140.0,105130.0,0.26298823]
[1749910266026,0.00951085,105140.0,105130.0,0.27249926]
[1749910266186,0.06821237,105140.0,105130.0,0.26298732]
[1749910266386,0.06821237,105140.0,105130.0,1.01926259]
[1749910266588,0.07772349,105140.0,105130.0,1.01926259]
[1749910266824,0.08723416,105140.0,105130.0,0.26298751]
[1749910267032,0.08723416,105140.0,105130.0,0.2724989]
[1749910267256,0.07772304,105140.0,105130.0,0.2724989]
[1749910269356,0.08723416,105140.0,105130.0,0.2724989]
[1749910269776,0.27745672,105140.0,105130.0,0.26298751]
[1749910269983,0.26794614,105140.0,105130.0,0.26298751]
[1749910270637,1.02422141,105140.0,105130.0,0.27249899]
[1749910270842,1.0470569,105140.0,105130.0,0.27249899]
[1749910275430,1.0470569,105140.0,105130.0,0.27249853]
[1749910276239,0.85683434,105140.0,105130.0,0.27249853]
[1749910277058,0.84732322,105140.0,105130.0,0.27249853]
[1749910278302,0.84732313,105140.0,105130.0,0.27249853]
[1749910279129,0.84732073,105140.0,105130.0,0.27249853]
[1749910279333,0.09104546,105140.0,105130.0,0.27249853]
[1749910279535,0.06821237,105140.0,105130.0,0.27249853]
[1749910282062,5.80444254,105150.0,105140.0,0.23495502]
[1749910282295,6.92143874,105150.0,105140.0,0.25145529]
[1749910282528,6.90582384,105150.0,105140.0,0.25145529]
[1749910282744,6.92143872,105150.0,105140.0,0.25145529]
[1749910282963,6.92143867,105150.0,105140.0,0.26096596]
[1749910283186,6.92143869,105150.0,105140.0,0.27047654]
[1749910283408,6.91474662,105150.0,105140.0,0.25145529]
[1749910283647,6.9214387,105150.0,105140.0,0.25145529]
[1749910283886,6.91251592,105150.0,105140.0,0.25145529]
[1749910284107,6.92143872,105150.0,105140.0,0.26096596]
[1749910284319,6.91474663,105150.0,105140.0,0.26096596]
[1749910284541,6.91574662,105150.0,105140.0,0.26096596]
[1749910285004,6.90682384,105150.0,105140.0,0.26096596]
[1749910285247,6.9224387,105150.0,105140.0,0.26096596]
[1749910285468,6.90682384,105150.0,105140.0,0.26096596]
[1749910285694,6.9224387,105150.0,105140.0,0.26096596]
[1749910285951,6.91292912,105150.0,105140.0,0.25145529]
[1749910286405,6.90623704,105150.0,105140.0,0.24194453]
[1749910286623,6.88780448,105150.0,105140.0,0.24194453]
[1749910287032,6.89449657,105150.0,105140.0,0.24194453]
[1749910287250,6.89672727,105150.0,105140.0,0.24194453]
[1749910287477,6.89672727,105150.0,105140.0,0.25145529]
[1749910287692,6.90341935,105150.0,105140.0,0.25145529]
[1749910288126,6.89672726,105150.0,105140.0,0.25145529]
[1749910288339,6.89449657,105150.0,105140.0,0.25145529]
[1749910288805,6.90341935,105150.0,105140.0,0.24194453]
[1749910289043,6.89449657,105150.0,105140.0,0.22544453]
[1749910289268,6.90341936,105150.0,105140.0,0.22544453]
[1749910289487,6.90341935,105150.0,105140.0,0.22544453]
[1749910289968,6.90341936,105150.0,105140.0,0.24234453]
[1749910290378,6.89449657,105150.0,105140.0,0.24234453]
[1749910290591,6.90341935,105150.0,105140.0,0.24234453]
[1749910290796,6.89449657,105150.0,105140.0,0.22544453]
[1749910290998,6.89672727,105150.0,105140.0,0.22544453]
[1749910291203,6.90341936,105150.0,105140.0,0.22544453]
[1749910291449,6.87829444,105150.0,105140.0,0.0162]
[1749910291659,6.89390932,105150.0,105140.0,0.0162]
[1749910291874,0.00951103,105140.0,105130.0,0.25287574]
[1749910292084,0.77529706,105140.0,105130.0,0.26238713]
[1749910292290,0.78480809,105140.0,105130.0,0.26238713]
[1749910292496,0.78480773,105140.0,105130.0,0.26238713]
[1749910292703,0.99405244,105140.0,105130.0,0.26238732]
[1749910292917,0.79431876,105140.0,105130.0,0.27189871]
[1749910293326,0.79431876,105140.0,105130.0,0.27289871]
[1749910293990,0.79431876,105140.0,105130.0,0.27389871]
[1749910294403,0.79431876,105140.0,105130.0,0.26438732]
[1749910294609,0.80382988,105140.0,105130.0,0.26438732]
[1749910294821,1.02418132,105140.0,105130.0,0.26438732]
[1749910299727,0.83395876,105140.0,105130.0,0.26438732]
[1749910299928,1.02418132,105140.0,105130.0,0.26438732]
[1749910300145,0.27741717,105140.0,105130.0,0.26438732]
[1749910300620,0.07768349,105140.0,105130.0,0.27389871]
[1749910300844,0.05866152,105140.0,105130.0,0.27389871]
[1749910301045,0.06817246,105140.0,105130.0,0.27389871]
[1749910301425,0.06817246,105140.0,105130.0,1.03017398]
[1749910301810,0.07768349,105140.0,105130.0,1.03017398]
[1749910303970,0.07768349,105140.0,105130.0,0.27389871]
[1749910307061,0.83395876,105140.0,105130.0,0.27389871]
[1749910309905,0.07768349,105140.0,105130.0,0.27389871]
[1749910312209,0.08719461,105140.0,105130.0,0.27389871]
[1749910312555,0.07768349,105140.0,105130.0,0.27389871]
[1749910313559,0.83395876,105140.0,105130.0,0.27389871]
[1749910314123,0.84346988,105140.0,105130.0,0.27389871]
[1749910316048,1.03369244,105140.0,105130.0,0.25487584]
[1749910316261,1.02418177,105140.0,105130.0,0.25487584]
[1749910316697,0.83395921,105140.0,105130.0,0.26438732]
[1749910316978,1.02418177,105140.0,105130.0,0.26438732]
[1749910318935,0.83395921,105140.0,105130.0,0.27389871]
[1749910319349,0.04915058,105140.0,105130.0,1.03017398]
[1749910319550,0.06817219,105140.0,105130.0,1.03017398]
[1749910319689,0.06817219,105140.0,105130.0,0.27389871]
[1749910319889,0.08719353,105140.0,105130.0,0.27389871]
[1749910321492,0.02853156,105140.0,105130.0,0.27389871]
[1749910321696,5.33811271,105150.0,105140.0,0.25145484]
[1749910321918,0.56680044,105160.0,105150.0,0.21873404]
[1749910322127,0.60812546,105160.0,105150.0,1.00770931]
[1749910322332,0.61763459,105160.0,105150.0,0.25143404]
[1749910322542,0.61763459,105160.0,105150.0,1.00770931]
[1749910322739,0.62714381,105160.0,105150.0,1.00770931]
[1749910322943,0.58010395,105160.0,105150.0,1.00770931]
[1749910323175,0.57064258,105160.0,105150.0,1.00770931]
[1749910323380,0.55731398,105160.0,105150.0,1.10385853]
[1749910323736,0.55831398,105160.0,105150.0,1.10385853]
[1749910324103,0.55831389,105160.0,105150.0,1.00770931]
[1749910324353,0.56782302,105160.0,105150.0,1.00770931]
[1749910325126,0.56882302,105160.0,105150.0,1.00770931]
[1749910325328,0.55931389,105160.0,105150.0,1.00770931]
[1749910325554,0.49114767,105160.0,105150.0,1.00770931]
[1749910325763,0.49114767,105160.0,105150.0,1.10385853]
[1749910325764,0.05119626,105160.0,105150.0,1.10385853]
[1749910326192,0.06070494,105160.0,105150.0,1.00770931]
[1749910326394,0.05119626,105160.0,105150.0,1.00770931]
[1749910326595,0.04168767,105160.0,105150.0,1.00770931]
[1749910326809,0.05119617,105160.0,105150.0,1.00770931]
[1749910327606,0.04168767,105160.0,105150.0,1.00770931]
[1749910328249,0.05119626,105160.0,105150.0,1.10385853]
[1749910328459,0.04168767,105160.0,105150.0,1.10385853]
[1749910330426,0.04068767,105160.0,105150.0,1.10385853]
[1749910330929,0.04068767,105160.0,105150.0,1.10485853]
[1749910331128,0.03968767,105160.0,105150.0,1.10485853]
[1749910331884,0.04919617,105160.0,105150.0,1.00870931]
[1749910332099,0.04919617,105160.0,105150.0,0.40687404]
[1749910332348,0.84350706,105160.0,105150.0,0.25243413]
[1749910332580,0.84350706,105160.0,105150.0,0.41642372]
[1749910332814,0.84350706,105160.0,105150.0,0.41742372]
[1749910333055,0.84350697,105160.0,105150.0,0.41742372]
[1749910333490,0.0872317,105160.0,105150.0,0.41742372]
[1749910333751,0.0475917,105160.0,105150.0,0.41742372]
[1749910334414,0.0475917,105160.0,105150.0,0.41738372]
[1749910335285,0.03808257,105160.0,105150.0,0.41738372]
[1749910335493,0.02857353,105160.0,105150.0,1.26980821]
[1749910335725,0.03808257,105160.0,105150.0,1.26980821]
[1749910336151,1.08495836,105170.0,105160.0,0.00950931]
[1749910336358,1.08495836,105170.0,105160.0,0.02550931]
[1749910336569,1.08495836,105170.0,105160.0,0.22520491]
[1749910337405,1.08595836,105170.0,105160.0,0.22520491]
[1749910339389,1.04631836,105170.0,105160.0,0.23471404]
[1749910339577,1.08603836,105170.0,105160.0,0.23471404]
[1749910344293,1.08603836,105170.0,105160.0,0.24422308]
[1749910344701,1.08603836,105170.0,105160.0,0.23471404]
[1749910347034,0.32976309,105170.0,105160.0,0.24422308]
[1749910347243,1.08603836,105170.0,105160.0,0.26973194]
[1749910348768,1.08603836,105170.0,105160.0,0.26022308]
[1749910348971,1.08603836,105170.0,105160.0,0.24422308]
[1749910349644,1.08603836,105170.0,105160.0,0.25373203]
[1749910353267,1.10885847,105170.0,105160.0,0.25373158]
[1749910354325,1.13738307,105170.0,105160.0,0.25373113]
[1749910354534,1.13738307,105170.0,105160.0,0.27033113]
[1749910355642,1.14689139,105170.0,105160.0,0.27033113]
[1749910356303,1.0768975,105170.0,105160.0,0.27033113]
[1749910359119,0.1209451,105170.0,105160.0,0.27033113]
[1749910359331,0.85440026,105170.0,105160.0,0.27033113]
[1749910359543,0.88672878,105170.0,105160.0,0.27033113]
[1749910359979,0.88672878,105170.0,105160.0,0.36648035]
[1749910360192,1.07689707,105170.0,105160.0,0.36648035]
[1749910360606,1.07689707,105170.0,105160.0,0.27033113]
[1749910362168,1.07689707,105170.0,105160.0,0.26082236]
[1749910368468,0.3206218,105170.0,105160.0,0.26082236]
[1749910368678,1.05407696,105170.0,105160.0,0.26082236]
[1749910368901,1.07689707,105170.0,105160.0,0.26082236]
[1749910371730,1.03717707,105170.0,105160.0,0.26082236]
[1749910371941,1.07681707,105170.0,105160.0,0.26082236]
[1749910374665,1.07681707,105170.0,105160.0,0.27033113]
[1749910374875,0.87714037,105170.0,105160.0,0.3664799]
[1749910375517,0.85812355,105170.0,105160.0,0.3664799]
[1749910375723,0.11135615,105170.0,105160.0,0.3664799]
[1749910375929,0.85431936,105170.0,105160.0,0.3664799]
[1749910376140,0.87713947,105170.0,105160.0,0.27033068]
[1749910377230,0.8866477,105170.0,105160.0,0.27033068]
[1749910377443,0.87713947,105170.0,105160.0,0.27033068]
[1749910378097,0.8866477,105170.0,105160.0,0.27033068]
[1749910378522,0.87713947,105170.0,105160.0,0.27033068]
[1749910378731,0.88664761,105170.0,105160.0,0.3664799]
[1749910378946,0.88664761,105170.0,105160.0,0.27033068]
[1749910379883,0.13988057,105170.0,105160.0,0.27033068]
[1749910380240,0.87333573,105170.0,105160.0,0.27033068]
[1749910380447,0.89615584,105170.0,105160.0,0.27033068]
[1749910380728,1.08632476,105170.0,105160.0,0.260822]
[1749910380947,1.0863253,105170.0,105160.0,0.244222]
[1749910381143,1.07681725,105170.0,105160.0,0.22520473]
[1749910381986,1.06730911,105170.0,105160.0,0.22520473]
[1749910382447,6.29829256,105170.0,105160.0,0.016]
[1749910382663,0.01901781,105160.0,105150.0,0.25123404]
[1749910382880,0.01901781,105160.0,105150.0,0.40547404]
[1749910383536,0.78480185,105160.0,105150.0,0.40547404]
[1749910383743,0.78480167,105160.0,105150.0,0.40547404]
[1749910383962,0.03803553,105160.0,105150.0,0.40547404]
[1749910384169,0.03803499,105160.0,105150.0,0.40647404]
[1749910384587,0.22822227,105160.0,105150.0,0.39696445]
[1749910384796,0.03803589,105160.0,105150.0,0.41598372]
[1749910385002,0.04754511,105160.0,105150.0,0.41598372]
[1749910385665,0.04754511,105160.0,105150.0,0.41698372]
[1749910386295,0.04754565,105160.0,105150.0,0.41698372]
[1749910386732,0.03803634,105160.0,105150.0,0.41698372]
[1749910387577,0.02852712,105160.0,105150.0,0.41698372]
[1749910387803,0.01901799,105160.0,105150.0,1.26940821]
[1749910388009,0.02852712,105160.0,105150.0,1.26940821]
[1749910388218,0.01901799,105160.0,105150.0,1.26940821]
[1749910388443,0.02852712,105160.0,105150.0,1.26940821]
[1749910388857,0.01901799,105160.0,105150.0,1.17325899]
[1749910389064,0.01901763,105160.0,105150.0,1.17325899]
[1749910389269,0.02852667,105160.0,105150.0,1.17325899]
[1749910389478,0.01901754,105160.0,105150.0,1.17325899]
[1749910390391,0.00950868,105160.0,105150.0,1.17325899]
[1749910390595,0.01901754,105160.0,105150.0,1.17325899]
[1749910390806,0.0095085,105160.0,105150.0,1.23398803]
[1749910391020,0.01901727,105160.0,105150.0,1.13753881]
[1749910391234,0.01901727,105160.0,105150.0,1.15293881]
[1749910391446,0.01901709,105160.0,105150.0,1.15293881]
[1749910392496,0.02852577,105160.0,105150.0,1.15293881]
[1749910392953,0.03803463,105160.0,105150.0,1.15293881]
[1749910393566,0.03803454,105160.0,105150.0,1.15293881]
[1749910397150,0.03803454,105160.0,105150.0,0.39666354]
[1749910397388,0.02852577,105160.0,105150.0,1.15293881]
[1749910397597,0.02852586,105160.0,105150.0,1.15293881]
[1749910398675,1.09556338,105170.0,105160.0,0.21871323]
[1749910398897,1.29524006,105170.0,105160.0,0.22550455]
[1749910399369,1.28631921,105170.0,105160.0,0.23501341]
[1749910399839,1.29524007,105170.0,105160.0,0.23501341]
[1749910400083,1.29524007,105170.0,105160.0,0.22550455]
[1749910400316,1.28731921,105170.0,105160.0,0.22550455]
[1749910400526,1.29624007,105170.0,105160.0,0.22550455]
[1749910400708,1.28731921,105170.0,105160.0,0.22550455]
[1749910400908,1.29624007,105170.0,105160.0,0.23501341]
[1749910401553,1.29624007,105170.0,105160.0,0.24452218]
[1749910401982,1.28731921,105170.0,105160.0,0.24452218]
[1749910402608,1.28731921,105170.0,105160.0,0.23501341]
[1749910403651,1.28731921,105170.0,105160.0,0.25011341]
[1749910403855,0.34083493,105170.0,105160.0,0.25962209]
[1749910404066,1.07427963,105170.0,105160.0,0.25962209]
[1749910404281,1.0971102,105170.0,105160.0,0.25962209]
[1749910405525,1.10661852,105170.0,105160.0,0.25962209]
[1749910405703,1.11612693,105170.0,105160.0,0.25962209]
[1749910406150,1.30629522,105170.0,105160.0,0.25962209]
[1749910407696,1.30629522,105170.0,105160.0,0.25011341]
[1749910408434,1.10661852,105170.0,105160.0,0.25962209]
[1749910409844,1.30629522,105170.0,105160.0,0.25962209]
[1749910410047,1.29678681,105170.0,105160.0,0.25962209]
[1749910410230,1.30629522,105170.0,105160.0,0.25962209]
[1749910410450,1.30629522,105170.0,105160.0,0.25011341]
[1749910410688,1.30629522,105170.0,105160.0,0.25962218]
[1749910411456,1.10661852,105170.0,105160.0,0.26913086]
[1749910411857,1.08378795,105170.0,105160.0,0.26913086]
[1749910412048,1.09329636,105170.0,105160.0,0.26913086]
[1749910414006,1.08378795,105170.0,105160.0,0.26913086]
[1749910414520,1.07427963,105170.0,105160.0,0.26913086]
[1749910414723,1.09329636,105170.0,105160.0,0.26913086]
[1749910415823,1.27395696,105170.0,105160.0,0.25962218]
[1749910416028,1.27395696,105170.0,105160.0,0.23501341]
[1749910420813,1.264449,105170.0,105160.0,0.22550455]
[1749910422060,1.264449,105170.0,105160.0,0.23501341]
[1749910425115,1.264449,105170.0,105160.0,0.22550455]
[1749910426189,1.25494077,105170.0,105160.0,0.22550455]
[1749910427038,1.25494077,105170.0,105160.0,0.22550473]
[1749910427235,1.25494077,105170.0,105160.0,0.23501377]
[1749910427755,1.27776553,105170.0,105160.0,0.23501377]
[1749910428363,1.00606029,105170.0,105160.0,0.23501377]
[1749910429128,1.02820836,105170.0,105160.0,0.23501377]
[1749910431333,1.02820836,105170.0,105160.0,0.26042272]
[1749910433091,1.01870004,105170.0,105160.0,0.25091377]
[1749910436516,0.26242477,105170.0,105160.0,0.25091377]
[1749910436720,1.01870004,105170.0,105160.0,0.26042263]
[1749910437359,1.02820818,105170.0,105160.0,0.26042263]
[1749910437586,1.02820818,105170.0,105160.0,0.2699314]
[1749910438241,0.04216408,105170.0,105160.0,0.2699314]
[1749910438481,0.84754758,105170.0,105160.0,0.26993086]
[1749910438695,0.8798872,105170.0,105160.0,0.26042218]
[1749910438899,1.07005549,105170.0,105160.0,0.25091341]
[1749910439734,1.04722419,105170.0,105160.0,0.25091341]
[1749910439945,1.07005712,105170.0,105160.0,0.25091341]
[1749910441134,0.87988883,105170.0,105160.0,0.26042218]
[1749910441341,0.88939724,105170.0,105160.0,0.36608008]
[1749910441587,0.88939724,105170.0,105160.0,0.26993086]
[1749910441804,1.0567326,105170.0,105160.0,0.26042218]
[1749910441977,1.04722473,105170.0,105160.0,0.26042218]
[1749910442347,0.001,105170.0,105160.0,1.01669736]
[1749910442760,0.0105076,105170.0,105160.0,1.01669736]
[1749910442962,0.001,105170.0,105160.0,1.11284658]
[1749910443420,1.23300412,105180.0,105170.0,0.25039271]
[1749910443630,6.24673679,105180.0,105170.0,0.25990049]
[1749910443824,6.27764705,105180.0,105170.0,0.25990049]
[1749910444027,6.27764706,105180.0,105170.0,0.25990049]
[1749910444203,6.22853964,105180.0,105170.0,0.285526]
[1749910444413,6.27764697,105180.0,105170.0,0.285526]
[1749910444788,6.26872702,105180.0,105170.0,0.285526]
[1749910444984,6.27764697,105180.0,105170.0,0.285526]
[1749910445401,6.26872702,105180.0,105170.0,0.285526]
[1749910445635,5.52137169,105180.0,105170.0,0.285526]
[1749910445826,6.26872702,105180.0,105170.0,0.25990049]
[1749910446051,6.27764694,105180.0,105170.0,0.25990049]
[1749910446258,5.1528497,105180.0,105170.0,0.25990049]
[1749910446459,0.0406,105180.0,105170.0,0.25990049]
[1749910446603,0.05010669,105180.0,105170.0,1.17037576]
[1749910446802,0.05961356,105180.0,105170.0,1.17037576]
[1749910447211,0.0406,105180.0,105170.0,1.26652498]
[1749910447506,0.05010678,105180.0,105170.0,1.26652498]
[1749910447935,0.01050678,105180.0,105170.0,1.26652498]
[1749910448211,0.05010678,105180.0,105170.0,1.26652498]
[1749910449231,0.02001374,105180.0,105170.0,1.26652498]
[1749910449452,0.05010678,105180.0,105170.0,1.26652498]
[1749910449668,0.04758724,105180.0,105170.0,1.26652498]
[1749910449889,0.01749411,105180.0,105170.0,1.26652498]
[1749910450128,0.08106055,105190.0,105180.0,0.25077164]
[1749910450353,0.09009562,105190.0,105180.0,1.00704691]
[1749910450810,0.05049562,105190.0,105180.0,1.00704691]
[1749910451045,0.09009562,105190.0,105180.0,1.00704691]
[1749910451524,0.09960195,105190.0,105180.0,0.25077164]
[1749910451965,0.10060195,105190.0,105180.0,0.25077164]
[1749910452405,0.10060195,105190.0,105180.0,0.27639715]
[1749910452610,0.11010837,105190.0,105180.0,0.27639715]
[1749910452814,0.10060195,105190.0,105180.0,0.27639715]
[1749910453255,0.10060195,105190.0,105180.0,0.25077164]
[1749910455080,0.11010837,105190.0,105180.0,0.25077164]
[1749910456702,0.86638364,105190.0,105180.0,0.25077164]
[1749910457857,0.11010837,105190.0,105180.0,0.25077164]
[1749910462391,0.86638364,105190.0,105180.0,0.25077164]
[1749910462904,0.87530244,105190.0,105180.0,0.25077164]
[1749910463105,0.86638364,105190.0,105180.0,0.25077164]
[1749910463335,0.11902717,105190.0,105180.0,0.25077164]
[1749910463531,0.86638364,105190.0,105180.0,0.25077164]
[1749910463738,0.87530244,105190.0,105180.0,0.25077164]
[1749910463984,0.86638364,105190.0,105180.0,0.25077164]
[1749910464202,0.87530244,105190.0,105180.0,0.25077164]
[1749910464584,0.87530316,105190.0,105180.0,0.25077182]
[1749910464732,0.87530317,105190.0,105180.0,0.25077182]
[1749910464933,1.05592916,105190.0,105180.0,0.25077182]
[1749910465776,1.38701035,105190.0,105180.0,0.25077182]
[1749910465986,1.38642292,105190.0,105180.0,0.23175763]
[1749910466206,1.37632943,105190.0,105180.0,0.0161]
[1749910466427,1.48139809,105190.0,105180.0,0.0161]
[1749910466652,1.47189147,105190.0,105180.0,0.0161]
[1749910466850,1.43229141,105190.0,105180.0,0.02560751]
[1749910467080,1.46297227,105190.0,105180.0,0.21575772]
[1749910467431,1.45405303,105190.0,105180.0,0.21575772]
[1749910467634,0.61054763,105190.0,105180.0,0.21575772]
[1749910467764,0.61054763,105190.0,105180.0,0.0161]
[1749910467765,1.37574209,105190.0,105180.0,0.0161]
[1749910467976,1.35790387,105190.0,105180.0,0.0161]
[1749910468177,1.37574222,105190.0,105180.0,0.02560751]
[1749910468389,1.36682307,105190.0,105180.0,0.02560751]
[1749910468589,1.38069731,105190.0,105180.0,0.02560751]
[1749910468957,1.38961648,105190.0,105180.0,0.02560751]
[1749910469214,1.39853565,105190.0,105180.0,0.02560751]
[1749910469403,1.38961648,105190.0,105180.0,0.02560751]
[1749910469609,1.39853565,105190.0,105180.0,0.02560751]
[1749910470230,1.37177814,105190.0,105180.0,0.21575772]
[1749910470457,1.38961648,105190.0,105180.0,0.21575772]
[1749910470658,1.39853565,105190.0,105180.0,0.21575772]
[1749910470860,1.38961648,105190.0,105180.0,0.21575772]
[1749910471062,1.39853565,105190.0,105180.0,0.21575772]
[1749910471565,1.38069731,105190.0,105180.0,0.21575772]
[1749910471800,1.39853565,105190.0,105180.0,0.21575772]
[1749910472002,1.38069731,105190.0,105180.0,0.21575772]
[1749910472216,1.39853565,105190.0,105180.0,0.21575772]
[1749910472418,1.38069731,105190.0,105180.0,0.21575772]
[1749910472624,1.39853565,105190.0,105180.0,0.21575772]
[1749910472828,1.46792736,105190.0,105180.0,0.0161]
[1749910473034,1.4857657,105190.0,105180.0,0.21575772]
[1749910473213,1.46792736,105190.0,105180.0,0.21575772]
[1749910473446,1.46792736,105190.0,105170.0,0.0314]
[1749910473447,0.54916477,105180.0,105170.0,0.0314]
[1749910473674,2.05220808,105180.0,105170.0,0.0159]
[1749910473918,2.07501815,105180.0,105170.0,0.02540841]
[1749910474156,2.08393435,105180.0,105170.0,0.02540841]
[1749910474378,1.32765908,105180.0,105170.0,0.02540841]
[1749910474599,1.31874288,105180.0,105170.0,0.22508484]
[1749910474996,1.32765898,105180.0,105170.0,0.22508484]
[1749910475271,1.31874288,105180.0,105170.0,0.22508484]
[1749910475515,1.32765891,105180.0,105170.0,0.23459289]
[1749910475942,1.31874288,105180.0,105170.0,0.23459289]
[1749910476146,1.32765898,105180.0,105170.0,0.23459289]
[1749910476433,1.32765904,105180.0,105170.0,0.23459289]
[1749910476571,1.32765903,105180.0,105170.0,0.23459289]
[1749910476799,1.31874288,105180.0,105170.0,0.23459289]
[1749910477411,1.32765901,105180.0,105170.0,0.23459289]
[1749910477840,1.31874288,105180.0,105170.0,0.23459289]
[1749910478045,1.32765901,105180.0,105170.0,0.23459289]
[1749910478251,1.31874288,105180.0,105170.0,0.23459289]
[1749910478512,1.32765901,105180.0,105170.0,0.23459289]
[1749910479238,1.31874288,105180.0,105170.0,0.23459289]
[1749910479408,1.32765901,105180.0,105170.0,0.23459289]
[1749910479997,1.31874288,105180.0,105170.0,0.23459289]
[1749910480207,1.32765901,105180.0,105170.0,0.24410085]
[1749910480410,1.32765893,105180.0,105170.0,0.24410085]
[1749910480615,1.31874288,105180.0,105170.0,0.24410085]
[1749910480836,1.32765894,105180.0,105170.0,0.24410085]
[1749910481042,1.32765897,105180.0,105170.0,0.24410085]
[1749910481400,1.31874288,105180.0,105170.0,0.24410085]
[1749910482460,1.318732,105180.0,105170.0,0.24410085]
[1749910483184,1.32765197,105180.0,105170.0,0.24410085]
[1749910484418,1.318732,105180.0,105170.0,0.24410085]
[1749910484799,1.32765197,105180.0,105170.0,0.24410085]
[1749910484993,1.318732,105180.0,105170.0,0.24410085]
[1749910485207,1.32765197,105180.0,105170.0,0.24410085]
[1749910486466,1.318732,105180.0,105170.0,0.23459289]
[1749910486635,1.29593281,105180.0,105170.0,0.23459289]
[1749910487048,1.31872934,105180.0,105170.0,0.23459289]
[1749910487245,1.32764931,105180.0,105170.0,0.23459289]
[1749910487704,1.31872934,105180.0,105170.0,0.23459289]
[1749910487923,1.32764931,105180.0,105170.0,0.23459289]
[1749910488758,1.31872934,105180.0,105170.0,0.23459289]
[1749910489032,1.32764931,105180.0,105170.0,0.23459289]
[1749910490157,1.31872934,105180.0,105170.0,0.22508484]
[1749910490383,1.32764931,105180.0,105170.0,0.2155767]
[1749910490612,1.31872934,105180.0,105170.0,0.22508484]
[1749910490820,1.32764932,105180.0,105170.0,0.22508484]
[1749910491025,1.31872934,105180.0,105170.0,0.22508484]
[1749910491430,1.32764931,105180.0,105170.0,0.23459289]
[1749910491637,1.31872934,105180.0,105170.0,0.23459289]
[1749910491879,1.3276493,105180.0,105170.0,0.23459289]
[1749910492122,1.32764931,105180.0,105170.0,0.23459289]
[1749910492351,1.31872934,105180.0,105170.0,0.23459289]
[1749910492907,1.32764931,105180.0,105170.0,0.23459289]
[1749910494764,1.31872934,105180.0,105170.0,0.22508484]
[1749910495186,1.31872934,105180.0,105170.0,0.23459289]
[1749910495853,1.41487856,105180.0,105170.0,0.23459289]
[1749910496106,1.41487856,105180.0,105170.0,0.22508484]
[1749910496352,1.41487856,105180.0,105170.0,0.2155767]
[1749910496585,1.40537123,105180.0,105170.0,0.2155767]
[1749910496803,1.40537123,105180.0,105170.0,0.22508493]
[1749910497219,1.30922201,105180.0,105170.0,0.22508493]
[1749910499130,1.30922201,105180.0,105170.0,0.24058493]
[1749910501569,1.44000462,105180.0,105170.0,0.0159]
[1749910501795,0.19969551,105160.0,105150.0,0.0152]
[1749910502022,0.54922445,105150.0,105140.0,0.0303]
[1749910502244,6.34598977,105150.0,105140.0,0.23003359]
[1749910502473,6.34598977,105150.0,105140.0,0.23051071]
[1749910502704,5.43184921,105150.0,105140.0,0.24002156]
[1749910502928,5.6483344,105150.0,105140.0,0.24953232]
[1749910503352,6.40460967,105150.0,105140.0,0.23351071]
[1749910503567,6.24542731,105150.0,105140.0,0.2525325]
[1749910503821,6.05509963,105150.0,105140.0,0.2525325]
[1749910504038,6.06460967,105150.0,105140.0,0.26204326]
[1749910504255,6.06460967,105150.0,105140.0,0.26504326]
[1749910504934,6.02500967,105150.0,105140.0,0.27455393]
[1749910505151,6.06460967,105150.0,105140.0,0.26504326]
[1749910505372,0.02852994,105150.0,105140.0,0.27455339]
[1749910505589,0.82440521,105150.0,105140.0,0.29721278]
[1749910505813,1.01460967,105150.0,105140.0,0.28770229]
[1749910506238,1.01460967,105150.0,105140.0,0.24602147]
[1749910506447,1.01460967,105150.0,105140.0,0.26504272]
[1749910507361,1.35460967,105150.0,105140.0,0.26504272]
[1749910507581,1.16440521,105150.0,105140.0,0.27455321]
[1749910508231,1.16440521,105150.0,105140.0,0.26504272]
[1749910508419,1.17391543,105150.0,105140.0,0.26504272]
[1749910510910,0.35901926,105150.0,105140.0,0.27455321]
[1749910511131,1.16440457,105150.0,105140.0,0.37070243]
[1749910511948,1.16440457,105150.0,105140.0,0.36770243]
[1749910512140,1.1739147,105150.0,105140.0,0.36770243]
[1749910512359,1.20271265,105150.0,105140.0,0.36970243]